[Event "Titled Tuesday Blitz November 22 Late 2022"]
[White "Perera Alfonso, Rene Humberto"]
[Black "Kovacevic, Radmila"]
[WhiteFideId "3514722"]
[BlackFideId "933171"]
[WhiteElo "2313"]
[BlackElo "2208"]
[Result "0-1"]
[Round "01"]
[TimeControl "180+1"]
[Date "2022.11.23"]
[WhiteClock "0:00:09"]
[BlackClock "0:00:03"]

1. e4 {[%clk 0:03:00]}  e5 {[%clk 0:02:59]} 2. Nf3 {[%clk 0:02:59]}  f5 {[%clk 0:02:58]} 3. Nxe5 {[%clk 0:02:53]}  Qf6 {[%clk 0:02:57]} 4. d4 {[%clk 0:02:53]}  d6 {[%clk 0:02:55]} 5. Nc4 {[%clk 0:02:53]}  fxe4 {[%clk 0:02:54]} 6. Nc3 {[%clk 0:02:53]}  Qg6 {[%clk 0:02:52]} 7. f3 {[%clk 0:02:50]}  exf3 {[%clk 0:02:46]} 8. Qxf3 {[%clk 0:02:51]}  Be7 {[%clk 0:02:45]} 9. Bd3 {[%clk 0:02:45]}  Qe6+ {[%clk 0:02:22]} 10. Be3 {[%clk 0:02:39]}  Nf6 {[%clk 0:02:13]} 11. O-O {[%clk 0:02:21]}  O-O {[%clk 0:02:11]} 12. d5 {[%clk 0:02:13]}  Qg4 {[%clk 0:02:07]} 13. Qxg4 {[%clk 0:02:11]}  Nxg4 {[%clk 0:01:58]} 14. Bd4 {[%clk 0:02:10]}  c5 {[%clk 0:01:51]} 15. Rxf8+ {[%clk 0:01:52]}  Bxf8 {[%clk 0:01:51]} 16. Nb5 {[%clk 0:01:17]}  Nd7 {[%clk 0:01:24]} 17. Bc3 {[%clk 0:01:14]}  a6 {[%clk 0:01:20]} 18. Nc7 {[%clk 0:01:07]}  Ra7 {[%clk 0:01:11]} 19. Ne6 {[%clk 0:01:01]}  Be7 {[%clk 0:01:07]} 20. a4 {[%clk 0:00:54]}  Nde5 {[%clk 0:00:58]} 21. Nxe5 {[%clk 0:00:53]}  Nxe5 {[%clk 0:00:58]} 22. Nxc5 {[%clk 0:00:48]}  b6 {[%clk 0:00:47]} 23. Ne4 {[%clk 0:00:44]}  Nxd3 {[%clk 0:00:43]} 24. cxd3 {[%clk 0:00:45]}  Rc7 {[%clk 0:00:43]} 25. Bd4 {[%clk 0:00:41]}  Rc2 {[%clk 0:00:34]} 26. b4 {[%clk 0:00:34]}  Bb7 {[%clk 0:00:34]} 27. Bxb6 {[%clk 0:00:31]}  Bxd5 {[%clk 0:00:34]} 28. Bf2 {[%clk 0:00:28]}  Bc6 {[%clk 0:00:27]} 29. Bd4 {[%clk 0:00:20]}  d5 {[%clk 0:00:24]} 30. Nc5 {[%clk 0:00:19]}  a5 {[%clk 0:00:19]} 31. Re1 {[%clk 0:00:15]}  Bf8 {[%clk 0:00:15]} 32. Re6 {[%clk 0:00:14]}  Ba8 {[%clk 0:00:09]} 33. Ra6 {[%clk 0:00:14]}  axb4 {[%clk 0:00:05]} 34. Rxa8 {[%clk 0:00:14]}  Kf7 {[%clk 0:00:03]} 35. Rc8 {[%clk 0:00:12]}  b3 {[%clk 0:00:03]} 36. Rc7+ {[%clk 0:00:10]}  Kg8 {[%clk 0:00:03]} 37. Ne6 {[%clk 0:00:10]}  Rxc7 {[%clk 0:00:02]} 38. Nxc7 {[%clk 0:00:11]}  Bc5 {[%clk 0:00:02]} 39. Bxc5 {[%clk 0:00:07]}  b2 {[%clk 0:00:02]} 40. a5 {[%clk 0:00:07]}  b1=Q+ {[%clk 0:00:03]} 41. Kf2 {[%clk 0:00:07]}  Qa2+ {[%clk 0:00:04]} 42. Ke3 {[%clk 0:00:06]}  Qxa5 {[%clk 0:00:05]} 43. Kd4 {[%clk 0:00:07]}  Qd2 {[%clk 0:00:04]} 44. Nxd5 {[%clk 0:00:07]}  Qxg2 {[%clk 0:00:04]} 45. h4 {[%clk 0:00:07]}  Qg4+ {[%clk 0:00:04]} 46. Ke5 {[%clk 0:00:07]}  Qxh4 {[%clk 0:00:04]} 47. d4 {[%clk 0:00:08]}  Qh2+ {[%clk 0:00:04]} 48. Ke6 {[%clk 0:00:08]}  h5 {[%clk 0:00:04]} 49. Ne7+ {[%clk 0:00:08]}  Kh7 {[%clk 0:00:04]} 50. d5 {[%clk 0:00:08]}  Qe2+ {[%clk 0:00:04]} 51. Kd7 {[%clk 0:00:08]}  Qg4+ {[%clk 0:00:03]} 52. Kc6 {[%clk 0:00:08]}  Qf3 {[%clk 0:00:01]} 53. Bd6 {[%clk 0:00:09]}  h4 {[%clk 0:00:02]} 54. Kc5 {[%clk 0:00:09]}  h3 {[%clk 0:00:02]} 55. Be5 {[%clk 0:00:09]}  Qd3 {[%clk 0:00:02]} 56. d6 {[%clk 0:00:09]}  Qc2+ {[%clk 0:00:03]} 57. Kd5 {[%clk 0:00:09]}  h2 {[%clk 0:00:03]} 58. Ke6 {[%clk 0:00:10]}  h1=Q {[%clk 0:00:03]} 59. d7 {[%clk 0:00:11]}  Qb3+ {[%clk 0:00:02]} 60. Kd6 {[%clk 0:00:10]}  Qhd1+ {[%clk 0:00:03]} 61. Kc7 {[%clk 0:00:10]}  Qc4+ {[%clk 0:00:03]} 62. Kd8 {[%clk 0:00:10]}  Qcd3 {[%clk 0:00:03]} 63. Ke8 {[%clk 0:00:09]}  Qxd7+ {[%clk 0:00:03]} 64. Kf8 {[%clk 0:00:10]}  Qe6 {[%clk 0:00:03]} 65. Bxg7 {[%clk 0:00:09]}  Qd8# {[%clk 0:00:03]} 0-1


[Site "https://www.chess.com"]

[Event "Titled Tuesday Blitz November 22 Late 2022"]
[White "Petrovic, Aleksa"]
[Black "Galchenko, Matvey"]
[WhiteFideId "967629"]
[BlackFideId "24175480"]
[WhiteElo "2224"]
[BlackElo "2403"]
[Result "0-1"]
[Round "01"]
[TimeControl "180+1"]
[Date "2022.11.23"]
[WhiteClock "0:00:13"]
[BlackClock "0:00:33"]

1. d4 {[%clk 0:03:00]}  Nf6 {[%clk 0:02:53]} 2. c4 {[%clk 0:03:01]}  c5 {[%clk 0:02:53]} 3. d5 {[%clk 0:03:01]}  e6 {[%clk 0:02:53]} 4. Nc3 {[%clk 0:03:00]}  exd5 {[%clk 0:02:54]} 5. cxd5 {[%clk 0:03:00]}  d6 {[%clk 0:02:55]} 6. Nf3 {[%clk 0:03:00]}  g6 {[%clk 0:02:54]} 7. Nd2 {[%clk 0:03:01]}  Bg7 {[%clk 0:02:54]} 8. e4 {[%clk 0:03:01]}  O-O {[%clk 0:02:55]} 9. Be2 {[%clk 0:03:02]}  Re8 {[%clk 0:02:55]} 10. O-O {[%clk 0:03:02]}  Na6 {[%clk 0:02:56]} 11. a4 {[%clk 0:02:57]}  Nb4 {[%clk 0:02:49]} 12. f3 {[%clk 0:02:49]}  b6 {[%clk 0:02:47]} 13. Nc4 {[%clk 0:02:47]}  Ba6 {[%clk 0:02:44]} 14. Bf4 {[%clk 0:02:46]}  Nh5 {[%clk 0:02:42]} 15. Bd2 {[%clk 0:02:27]}  Bd4+ {[%clk 0:02:27]} 16. Kh1 {[%clk 0:02:27]}  f5 {[%clk 0:02:10]} 17. exf5 {[%clk 0:02:20]}  gxf5 {[%clk 0:02:09]} 18. f4 {[%clk 0:02:15]}  Nf6 {[%clk 0:01:59]} 19. Nb5 {[%clk 0:01:55]}  Bxb5 {[%clk 0:01:46]} 20. axb5 {[%clk 0:01:56]}  Nbxd5 {[%clk 0:01:44]} 21. Bd3 {[%clk 0:01:49]}  Ne4 {[%clk 0:01:42]} 22. Qh5 {[%clk 0:01:43]}  Qf6 {[%clk 0:01:39]} 23. Rae1 {[%clk 0:01:37]}  Nf2+ {[%clk 0:01:34]} 24. Rxf2 {[%clk 0:01:34]}  Rxe1+ {[%clk 0:01:33]} 25. Bxe1 {[%clk 0:01:33]}  Bxf2 {[%clk 0:01:34]} 26. Bxf2 {[%clk 0:01:31]}  Rf8 {[%clk 0:01:29]} 27. Qf3 {[%clk 0:01:05]}  Nb4 {[%clk 0:01:29]} 28. h4 {[%clk 0:01:01]}  Re8 {[%clk 0:01:28]} 29. h5 {[%clk 0:00:57]}  h6 {[%clk 0:01:24]} 30. Kh2 {[%clk 0:00:55]}  Re7 {[%clk 0:01:16]} 31. Ne3 {[%clk 0:00:40]}  Re8 {[%clk 0:00:43]} 32. Nd5 {[%clk 0:00:33]}  Nxd5 {[%clk 0:00:39]} 33. Qxd5+ {[%clk 0:00:34]}  Kg7 {[%clk 0:00:36]} 34. Bxf5 {[%clk 0:00:25]}  Re2 {[%clk 0:00:36]} 35. Qb7+ {[%clk 0:00:17]}  Qf7 {[%clk 0:00:32]} 36. Qxf7+ {[%clk 0:00:16]}  Kxf7 {[%clk 0:00:33]} 37. Kg3 {[%clk 0:00:15]}  Rxb2 {[%clk 0:00:33]} 38. Bg6+ {[%clk 0:00:15]}  Kf6 {[%clk 0:00:31]} 39. Kf3 {[%clk 0:00:14]}  Rb3+ {[%clk 0:00:31]} 40. Ke4 {[%clk 0:00:14]}  Rxb5 {[%clk 0:00:32]} 41. Bh4+ {[%clk 0:00:13]}  Kg7 {[%clk 0:00:33]} 42. f5 {[%clk 0:00:14]}  Rb4+ {[%clk 0:00:34]} 43. Kd5 {[%clk 0:00:13]}  Rxh4 {[%clk 0:00:35]} 44. Kxd6 {[%clk 0:00:13]}  c4 {[%clk 0:00:34]} 45. Ke7 {[%clk 0:00:13]}  Rf4 {[%clk 0:00:33]} 0-1


[Site "https://www.chess.com"]

[Event "Titled Tuesday Blitz November 22 Late 2022"]
[White "Pino Perez, Lazaro"]
[Black "Rosen, Eric"]
[WhiteFideId "3517055"]
[BlackFideId "2032562"]
[WhiteElo "2170"]
[BlackElo "2362"]
[Result "0-1"]
[Round "01"]
[TimeControl "180+1"]
[Date "2022.11.23"]
[WhiteClock "0:00:01"]
[BlackClock "0:00:18"]

1. d4 {[%clk 0:02:55]}  d5 {[%clk 0:02:59]} 2. Bf4 {[%clk 0:02:53]}  Nf6 {[%clk 0:03:00]} 3. e3 {[%clk 0:02:52]}  c5 {[%clk 0:03:00]} 4. Nf3 {[%clk 0:02:52]}  Nc6 {[%clk 0:03:01]} 5. Nbd2 {[%clk 0:02:53]}  cxd4 {[%clk 0:03:01]} 6. exd4 {[%clk 0:02:52]}  Bf5 {[%clk 0:03:01]} 7. Bb5 {[%clk 0:02:52]}  Rc8 {[%clk 0:02:57]} 8. Ne5 {[%clk 0:02:07]}  Qb6 {[%clk 0:02:56]} 9. Bxc6+ {[%clk 0:02:02]}  bxc6 {[%clk 0:02:56]} 10. Nb3 {[%clk 0:02:03]}  e6 {[%clk 0:02:56]} 11. g4 {[%clk 0:01:57]}  Bg6 {[%clk 0:02:03]} 12. h4 {[%clk 0:01:57]}  h5 {[%clk 0:01:53]} 13. Nxg6 {[%clk 0:01:57]}  fxg6 {[%clk 0:01:54]} 14. Qd3 {[%clk 0:01:56]}  Kf7 {[%clk 0:01:39]} 15. g5 {[%clk 0:01:24]}  Nd7 {[%clk 0:01:35]} 16. O-O-O {[%clk 0:01:14]}  c5 {[%clk 0:01:34]} 17. dxc5 {[%clk 0:01:15]}  Bxc5 {[%clk 0:01:19]} 18. Kb1 {[%clk 0:01:15]}  Rhe8 {[%clk 0:01:17]} 19. Rh3 {[%clk 0:01:10]}  Nf8 {[%clk 0:01:14]} 20. Nxc5 {[%clk 0:01:00]}  Qxc5 {[%clk 0:01:12]} 21. Be5 {[%clk 0:01:01]}  Kg8 {[%clk 0:01:05]} 22. Qe2 {[%clk 0:00:54]}  Kh7 {[%clk 0:01:01]} 23. Rc3 {[%clk 0:00:50]}  Qb6 {[%clk 0:01:00]} 24. Bd4 {[%clk 0:00:50]}  Qb8 {[%clk 0:00:53]} 25. Rxc8 {[%clk 0:00:42]}  Rxc8 {[%clk 0:00:53]} 26. b3 {[%clk 0:00:39]}  Qd6 {[%clk 0:00:52]} 27. Qe3 {[%clk 0:00:30]}  a5 {[%clk 0:00:50]} 28. f4 {[%clk 0:00:26]}  a4 {[%clk 0:00:49]} 29. Qe5 {[%clk 0:00:20]}  Qe7 {[%clk 0:00:26]} 30. Rf1 {[%clk 0:00:20]}  Nd7 {[%clk 0:00:26]} 31. Qe3 {[%clk 0:00:13]}  Qd6 {[%clk 0:00:26]} 32. Re1 {[%clk 0:00:08]}  Re8 {[%clk 0:00:26]} 33. Bb2 {[%clk 0:00:04]}  a3 {[%clk 0:00:26]} 34. Ba1 {[%clk 0:00:04]}  Nc5 {[%clk 0:00:25]} 35. Qd4 {[%clk 0:00:03]}  Qe7 {[%clk 0:00:22]} 36. Qb4 {[%clk 0:00:02]}  Ne4 {[%clk 0:00:20]} 37. Qd4 {[%clk 0:00:01]}  Rf8 {[%clk 0:00:18]} 0-1


[Site "https://www.chess.com"]

[Event "Titled Tuesday Blitz November 22 Late 2022"]
[White "Plat, Vojtech"]
[Black "Fernandez Garcia, Gumersindo"]
[WhiteFideId "325740"]
[BlackFideId "24516740"]
[WhiteElo "2514"]
[BlackElo "2140"]
[Result "1-0"]
[Round "01"]
[TimeControl "180+1"]
[Date "2022.11.23"]
[WhiteClock "0:01:26"]
[BlackClock "0:00:18"]

1. e4 {[%clk 0:02:52]}  c5 {[%clk 0:02:59]} 2. Nf3 {[%clk 0:02:53]}  g6 {[%clk 0:02:57]} 3. c3 {[%clk 0:02:52]}  Bg7 {[%clk 0:02:56]} 4. d4 {[%clk 0:02:52]}  cxd4 {[%clk 0:02:57]} 5. cxd4 {[%clk 0:02:52]}  d5 {[%clk 0:02:58]} 6. e5 {[%clk 0:02:52]}  Nc6 {[%clk 0:02:58]} 7. Nc3 {[%clk 0:02:52]}  Bg4 {[%clk 0:02:54]} 8. Be2 {[%clk 0:02:51]}  Nh6 {[%clk 0:02:52]} 9. O-O {[%clk 0:02:50]}  O-O {[%clk 0:02:52]} 10. h3 {[%clk 0:02:50]}  Bxf3 {[%clk 0:02:46]} 11. Bxf3 {[%clk 0:02:50]}  Nf5 {[%clk 0:02:43]} 12. Bxd5 {[%clk 0:02:46]}  Nfxd4 {[%clk 0:02:40]} 13. f4 {[%clk 0:02:41]}  e6 {[%clk 0:02:24]} 14. Bxc6 {[%clk 0:02:39]}  Nxc6 {[%clk 0:02:25]} 15. Be3 {[%clk 0:02:38]}  Qxd1 {[%clk 0:02:19]} 16. Rfxd1 {[%clk 0:02:37]}  Rfd8 {[%clk 0:02:20]} 17. Nb5 {[%clk 0:02:34]}  a6 {[%clk 0:02:17]} 18. Nd6 {[%clk 0:02:33]}  Rd7 {[%clk 0:02:17]} 19. Rac1 {[%clk 0:02:31]}  Ne7 {[%clk 0:02:11]} 20. Kf2 {[%clk 0:02:24]}  Nd5 {[%clk 0:02:09]} 21. Kf3 {[%clk 0:02:23]}  h5 {[%clk 0:02:06]} 22. Ne4 {[%clk 0:02:21]}  Rad8 {[%clk 0:02:02]} 23. Bc5 {[%clk 0:02:18]}  Bh6 {[%clk 0:01:54]} 24. Rxd5 {[%clk 0:02:13]}  Rxd5 {[%clk 0:01:49]} 25. Nf6+ {[%clk 0:02:13]}  Kg7 {[%clk 0:01:45]} 26. Nxd5 {[%clk 0:02:13]}  Rxd5 {[%clk 0:01:45]} 27. Be7 {[%clk 0:02:09]}  Rd3+ {[%clk 0:01:38]} 28. Ke4 {[%clk 0:02:09]}  Rd7 {[%clk 0:01:37]} 29. Bf6+ {[%clk 0:02:07]}  Kh7 {[%clk 0:01:34]} 30. g4 {[%clk 0:02:04]}  Bg7 {[%clk 0:01:33]} 31. Bg5 {[%clk 0:02:00]}  hxg4 {[%clk 0:01:31]} 32. hxg4 {[%clk 0:02:00]}  Bf8 {[%clk 0:01:23]} 33. Rc8 {[%clk 0:01:56]}  Bg7 {[%clk 0:01:22]} 34. Bf6 {[%clk 0:01:52]}  Bxf6 {[%clk 0:01:02]} 35. exf6 {[%clk 0:01:52]}  g5 {[%clk 0:01:03]} 36. fxg5 {[%clk 0:01:41]}  Rd5 {[%clk 0:01:02]} 37. Rf8 {[%clk 0:01:39]}  Rd7 {[%clk 0:01:01]} 38. Kf4 {[%clk 0:01:36]}  Rc7 {[%clk 0:01:01]} 39. Kg3 {[%clk 0:01:36]}  Rd7 {[%clk 0:00:45]} 40. Kh4 {[%clk 0:01:35]}  e5 {[%clk 0:00:27]} 41. Re8 {[%clk 0:01:34]}  Rd5 {[%clk 0:00:26]} 42. Kh5 {[%clk 0:01:30]}  Rd2 {[%clk 0:00:26]} 43. g6+ {[%clk 0:01:29]}  fxg6+ {[%clk 0:00:25]} 44. Kg5 {[%clk 0:01:29]}  Rf2 {[%clk 0:00:18]} 45. Re7+ {[%clk 0:01:28]}  Kg8 {[%clk 0:00:18]} 46. Kxg6 {[%clk 0:01:28]}  Kf8 {[%clk 0:00:17]} 47. Rxb7 {[%clk 0:01:28]}  Ke8 {[%clk 0:00:17]} 48. f7+ {[%clk 0:01:27]}  Kf8 {[%clk 0:00:18]} 49. Rb8+ {[%clk 0:01:27]}  Ke7 {[%clk 0:00:18]} 50. Re8+ {[%clk 0:01:26]}  Kd7 {[%clk 0:00:18]} 51. f8=Q {[%clk 0:01:26]} 1-0


[Site "https://www.chess.com"]

[Event "Titled Tuesday Blitz November 22 Late 2022"]
[White "Praggnanandhaa R"]
[Black "Souleidis, Georgios"]
[WhiteFideId "25059530"]
[BlackFideId "4206827"]
[WhiteElo "2599"]
[BlackElo "2401"]
[Result "1-0"]
[Round "01"]
[TimeControl "180+1"]
[Date "2022.11.22"]
[WhiteClock "0:02:00"]
[BlackClock "0:00:01"]

1. d3 {[%clk 0:02:58]}  d5 {[%clk 0:02:53]} 2. Nf3 {[%clk 0:02:59]}  Nf6 {[%clk 0:02:54]} 3. g3 {[%clk 0:02:54]}  c6 {[%clk 0:02:49]} 4. Bg2 {[%clk 0:02:45]}  Bf5 {[%clk 0:02:46]} 5. O-O {[%clk 0:02:46]}  e6 {[%clk 0:02:46]} 6. Nbd2 {[%clk 0:02:42]}  h6 {[%clk 0:02:45]} 7. Qe1 {[%clk 0:02:40]}  Be7 {[%clk 0:02:44]} 8. e4 {[%clk 0:02:40]}  Bh7 {[%clk 0:02:45]} 9. b3 {[%clk 0:02:39]}  O-O {[%clk 0:02:44]} 10. Bb2 {[%clk 0:02:30]}  a5 {[%clk 0:02:43]} 11. a3 {[%clk 0:02:30]}  Na6 {[%clk 0:02:24]} 12. Ne5 {[%clk 0:02:28]}  Nd7 {[%clk 0:02:09]} 13. Nxd7 {[%clk 0:02:27]}  Qxd7 {[%clk 0:02:10]} 14. Qe2 {[%clk 0:02:26]}  Rfe8 {[%clk 0:02:02]} 15. Rad1 {[%clk 0:02:21]}  Bf8 {[%clk 0:01:53]} 16. Nf3 {[%clk 0:02:21]}  b5 {[%clk 0:01:38]} 17. Ne5 {[%clk 0:02:18]}  Qb7 {[%clk 0:01:31]} 18. Ng4 {[%clk 0:02:14]}  c5 {[%clk 0:01:21]} 19. exd5 {[%clk 0:02:10]}  exd5 {[%clk 0:01:20]} 20. Qf3 {[%clk 0:02:04]}  Qd7 {[%clk 0:00:14]} 21. Ne5 {[%clk 0:02:04]}  Qc7 {[%clk 0:00:05]} 22. Qxd5 {[%clk 0:02:03]}  Rad8 {[%clk 0:00:05]} 23. Qc6 {[%clk 0:02:02]}  Qxc6 {[%clk 0:00:03]} 24. Nxc6 {[%clk 0:02:03]}  Rc8 {[%clk 0:00:01]} 25. Nxa5 {[%clk 0:02:03]}  Re2 {[%clk 0:00:01]} 26. Rc1 {[%clk 0:02:00]}  Rc7 {[%clk 0:00:01]} 27. Bf3 {[%clk 0:02:00]} 1-0


[Site "https://www.chess.com"]

[Event "Titled Tuesday Blitz November 22 Late 2022"]
[White "Prem, Pranav"]
[Black "Korchmar, Vasiliy"]
[WhiteFideId "30901057"]
[BlackFideId "24131750"]
[WhiteElo "1970"]
[BlackElo "2370"]
[Result "0-1"]
[Round "01"]
[TimeControl "180+1"]
[Date "2022.11.23"]
[WhiteClock "0:00:04"]
[BlackClock "0:00:03"]

1. d4 {[%clk 0:03:00]}  d5 {[%clk 0:02:59]} 2. c4 {[%clk 0:03:00]}  c6 {[%clk 0:02:59]} 3. Nf3 {[%clk 0:03:00]}  Nf6 {[%clk 0:02:59]} 4. e3 {[%clk 0:03:00]}  e6 {[%clk 0:02:58]} 5. b3 {[%clk 0:03:00]}  Ne4 {[%clk 0:02:56]} 6. Nbd2 {[%clk 0:02:58]}  Bb4 {[%clk 0:02:46]} 7. Bd3 {[%clk 0:02:57]}  f5 {[%clk 0:02:44]} 8. Qc2 {[%clk 0:02:46]}  Nd7 {[%clk 0:02:44]} 9. a3 {[%clk 0:02:43]}  Bd6 {[%clk 0:02:44]} 10. Bb2 {[%clk 0:02:41]}  Qf6 {[%clk 0:02:44]} 11. O-O {[%clk 0:02:05]}  O-O {[%clk 0:02:44]} 12. Ne1 {[%clk 0:01:59]}  Bxh2+ {[%clk 0:02:26]} 13. Kxh2 {[%clk 0:01:57]}  Qh4+ {[%clk 0:02:26]} 14. Kg1 {[%clk 0:01:55]}  Rf6 {[%clk 0:02:27]} 15. Bxe4 {[%clk 0:01:23]}  fxe4 {[%clk 0:01:56]} 16. f3 {[%clk 0:01:23]}  Rh6 {[%clk 0:01:44]} 17. fxe4 {[%clk 0:01:02]}  Nf6 {[%clk 0:01:44]} 18. Nef3 {[%clk 0:00:52]}  Qg3 {[%clk 0:01:04]} 19. e5 {[%clk 0:00:46]}  Ng4 {[%clk 0:01:03]} 20. Rae1 {[%clk 0:00:36]}  Bd7 {[%clk 0:01:01]} 21. e4 {[%clk 0:00:22]}  Rf8 {[%clk 0:00:55]} 22. Re2 {[%clk 0:00:16]}  Rh2 {[%clk 0:00:27]} 23. exd5 {[%clk 0:00:11]}  cxd5 {[%clk 0:00:24]} 24. cxd5 {[%clk 0:00:11]}  Ne3 {[%clk 0:00:20]} 25. Ne4 {[%clk 0:00:06]}  Rxg2+ {[%clk 0:00:06]} 26. Rxg2 {[%clk 0:00:06]}  Qh3 {[%clk 0:00:07]} 27. Qf2 {[%clk 0:00:05]}  Nxg2 {[%clk 0:00:05]} 28. Qxg2 {[%clk 0:00:06]}  Qh5 {[%clk 0:00:04]} 29. dxe6 {[%clk 0:00:05]}  Bxe6 {[%clk 0:00:03]} 30. Neg5 {[%clk 0:00:06]}  Bd5 {[%clk 0:00:03]} 31. Qg3 {[%clk 0:00:06]}  h6 {[%clk 0:00:03]} 32. Nh3 {[%clk 0:00:05]}  Bxf3 {[%clk 0:00:03]} 33. e6 {[%clk 0:00:05]}  Rf6 {[%clk 0:00:01]} 34. d5 {[%clk 0:00:06]}  Rg6 {[%clk 0:00:01]} 35. Qxg6 {[%clk 0:00:03]}  Qxg6+ {[%clk 0:00:01]} 36. Kf2 {[%clk 0:00:04]}  Qg2+ {[%clk 0:00:02]} 37. Ke3 {[%clk 0:00:03]}  Qe2+ {[%clk 0:00:02]} 38. Kf4 {[%clk 0:00:03]}  Bxd5 {[%clk 0:00:03]} 39. Rf2 {[%clk 0:00:03]}  Qxe6 {[%clk 0:00:03]} 40. Kg3 {[%clk 0:00:03]}  Qg6+ {[%clk 0:00:03]} 41. Kh2 {[%clk 0:00:04]}  Qd6+ {[%clk 0:00:03]} 42. Nf4 {[%clk 0:00:04]}  g5 {[%clk 0:00:03]} 43. Kg3 {[%clk 0:00:05]}  gxf4+ {[%clk 0:00:03]} 44. Rxf4 {[%clk 0:00:05]}  Kh7 {[%clk 0:00:03]} 45. Kg4 {[%clk 0:00:05]}  Qg6+ {[%clk 0:00:03]} 46. Kh3 {[%clk 0:00:04]}  Qh5+ {[%clk 0:00:03]} 0-1


[Site "https://www.chess.com"]

[Event "Titled Tuesday Blitz November 22 Late 2022"]
[White "Prithu Gupta"]
[Black "Riff, Vincent"]
[WhiteFideId "46618546"]
[BlackFideId "617776"]
[WhiteElo "2344"]
[BlackElo "2369"]
[Result "0-1"]
[Round "01"]
[TimeControl "180+1"]
[Date "2022.11.23"]
[WhiteClock "0:01:40"]
[BlackClock "0:01:47"]

1. d4 {[%clk 0:02:59]}  Nf6 {[%clk 0:02:58]} 2. Nf3 {[%clk 0:02:53]}  e6 {[%clk 0:02:57]} 3. c4 {[%clk 0:02:42]}  Bb4+ {[%clk 0:02:52]} 4. Nbd2 {[%clk 0:02:40]}  a5 {[%clk 0:02:52]} 5. e3 {[%clk 0:02:40]}  O-O {[%clk 0:02:51]} 6. Bd3 {[%clk 0:02:40]}  d6 {[%clk 0:02:51]} 7. O-O {[%clk 0:02:40]}  e5 {[%clk 0:02:49]} 8. Qc2 {[%clk 0:02:33]}  Bxd2 {[%clk 0:02:45]} 9. Bxd2 {[%clk 0:02:31]}  Nc6 {[%clk 0:02:43]} 10. dxe5 {[%clk 0:02:19]}  dxe5 {[%clk 0:02:41]} 11. Ng5 {[%clk 0:02:19]}  h6 {[%clk 0:02:37]} 12. Nh7 {[%clk 0:02:18]}  Re8 {[%clk 0:02:31]} 13. Nxf6+ {[%clk 0:02:18]}  Qxf6 {[%clk 0:02:31]} 14. a3 {[%clk 0:02:19]}  Bg4 {[%clk 0:02:27]} 15. Bc3 {[%clk 0:02:16]}  Rad8 {[%clk 0:02:23]} 16. f4 {[%clk 0:02:15]}  Qe7 {[%clk 0:02:18]} 17. Bh7+ {[%clk 0:02:09]}  Kh8 {[%clk 0:02:16]} 18. f5 {[%clk 0:02:05]}  Qf6 {[%clk 0:02:11]} 19. h3 {[%clk 0:02:03]}  Bh5 {[%clk 0:02:09]} 20. g4 {[%clk 0:02:03]}  Kxh7 {[%clk 0:02:06]} 21. gxh5 {[%clk 0:02:03]}  Qg5+ {[%clk 0:01:53]} 22. Kh2 {[%clk 0:02:02]}  f6 {[%clk 0:01:53]} 23. Rg1 {[%clk 0:02:00]}  Qxe3 {[%clk 0:01:52]} 24. Rg6 {[%clk 0:01:48]}  Nd4 {[%clk 0:01:48]} 25. Bxd4 {[%clk 0:01:40]}  Rxd4 {[%clk 0:01:47]} 0-1


[Site "https://www.chess.com"]

[Event "Titled Tuesday Blitz November 22 Late 2022"]
[White "Remolar Gallen, Jose"]
[Black "Milikow, Yoav"]
[WhiteFideId "2215187"]
[BlackFideId "2822237"]
[WhiteElo "2252"]
[BlackElo "2341"]
[Result "0-1"]
[Round "01"]
[TimeControl "180+1"]
[Date "2022.11.23"]
[WhiteClock "0:00:05"]
[BlackClock "0:00:14"]

1. d4 {[%clk 0:02:56]}  Nf6 {[%clk 0:02:59]} 2. Nf3 {[%clk 0:02:53]}  d5 {[%clk 0:02:58]} 3. c4 {[%clk 0:02:53]}  e6 {[%clk 0:02:58]} 4. Nc3 {[%clk 0:02:53]}  Bb4 {[%clk 0:02:58]} 5. cxd5 {[%clk 0:02:53]}  exd5 {[%clk 0:02:57]} 6. Bg5 {[%clk 0:02:53]}  h6 {[%clk 0:02:52]} 7. Bh4 {[%clk 0:02:53]}  g5 {[%clk 0:02:52]} 8. Bg3 {[%clk 0:02:53]}  Ne4 {[%clk 0:02:53]} 9. Nd2 {[%clk 0:02:47]}  Nc6 {[%clk 0:02:39]} 10. Ndxe4 {[%clk 0:02:41]}  dxe4 {[%clk 0:02:40]} 11. e3 {[%clk 0:02:37]}  h5 {[%clk 0:02:30]} 12. h4 {[%clk 0:02:23]}  Bd7 {[%clk 0:02:13]} 13. hxg5 {[%clk 0:02:03]}  Qxg5 {[%clk 0:02:14]} 14. Bh4 {[%clk 0:01:59]}  Qa5 {[%clk 0:02:09]} 15. Qb3 {[%clk 0:01:54]}  Be6 {[%clk 0:02:06]} 16. Bc4 {[%clk 0:01:52]}  Bxc4 {[%clk 0:01:49]} 17. Qxc4 {[%clk 0:01:52]}  Ne7 {[%clk 0:01:42]} 18. O-O {[%clk 0:01:37]}  Bxc3 {[%clk 0:01:41]} 19. bxc3 {[%clk 0:01:34]}  Nf5 {[%clk 0:01:26]} 20. Bf6 {[%clk 0:01:33]}  Rh6 {[%clk 0:01:24]} 21. Be5 {[%clk 0:01:29]}  Rc6 {[%clk 0:01:19]} 22. Qe2 {[%clk 0:01:23]}  Rh6 {[%clk 0:01:02]} 23. Rab1 {[%clk 0:01:16]}  O-O-O {[%clk 0:00:59]} 24. Rb5 {[%clk 0:01:14]}  Qa6 {[%clk 0:00:57]} 25. Rfb1 {[%clk 0:01:07]}  Rb6 {[%clk 0:00:39]} 26. c4 {[%clk 0:00:49]}  f6 {[%clk 0:00:28]} 27. Qxh5 {[%clk 0:00:38]}  Ne7 {[%clk 0:00:22]} 28. Bf4 {[%clk 0:00:30]}  Qxa2 {[%clk 0:00:20]} 29. Qf7 {[%clk 0:00:26]}  Rxb5 {[%clk 0:00:15]} 30. Rxb5 {[%clk 0:00:27]}  Qa1+ {[%clk 0:00:15]} 31. Kh2 {[%clk 0:00:27]}  Rh8+ {[%clk 0:00:16]} 32. Kg3 {[%clk 0:00:26]}  Qh1 {[%clk 0:00:16]} 33. Qe6+ {[%clk 0:00:15]}  Kb8 {[%clk 0:00:15]} 34. Bxc7+ {[%clk 0:00:14]}  Ka8 {[%clk 0:00:15]} 35. Qxe7 {[%clk 0:00:05]}  Qh4# {[%clk 0:00:14]} 0-1


[Site "https://www.chess.com"]